Workbook

Sheet 封面
A1: 附件2
A2: 2018年度部门决算公开报表
A4: 部门名称：原西安市阎良区发展改革和经济局
A5: 保密审查情况：已审查
A6: 部门主要负责人审签情况：魏娜已审签

Sheet 目录
A1: 目录
I3: 是否空表 | J3: 公开空表理由
A4: 表1 | B4: 部门收支总体情况表 | I4: 否
A5: 表2 | B5: 部门收入总体情况表 | I5: 否
A6: 表3 | B6: 部门支出总体情况表 | I6: 否
A7: 表4 | B7: 财政拨款收支总体情况表 | I7: 否
A8: 表5 | B8: 一般公共预算支出情况表（按功能分类科目） | I8: 否
A9: 表6 | B9: 一般公共预算基本支出情况表（按经济分类科目） | I9: 否
A10: 表7 | B10: 一般公共预算“三公”经费及会议费、培训费支出情况表 | I10: 否
A11: 表8 | B11: 政府性基金预算收支情况表 | I11: 否
A12: 表9 | B12: 政府采购情况表 | I12: 是 | J12: 无政府采购

Sheet PF01 部门收支总体情况表(01表)
A1: 部门收支总体情况表
D2: 01表
A3: 部门名称：原西安市阎良区发展改革和经济局 | B3: 2018年 | D3: 单位：万元
A4: 收入 | C4: 支出
A5: 项目 | B5: 决算数 | C5: 项目 | D5: 决算数
A6: 1、财政拨款收入 | B6: 5440.12 | C6: 1、一般公共服务支出 | D6: 1002.40
A7: 其中：一般公共预算财政拨款 | B7: 3181.89 | C7: 2、外交支出
A8: 政府性基金预算财政拨款 | B8: 2258.23 | C8: 3、国防支出
A9: 国有资本经营预算财政拨款 | C9: 4、公共安全支出
A10: 2、上级补助收入 | C10: 5、教育支出
A11: 3、事业收入 | C11: 6、科学技术支出
A12: 其中：纳入财政专户管理的收费 | C12: 7、文化体育与传媒支出
A13: 4、经营收入 | C13: 8、社会保障和就业支出
A14: 5、附属单位上缴收入 | C14: 9、医疗卫生与计划生育支出
A15: 6、其他收入 | C15: 10、节能环保支出 | D15: 129.00
C16: 11、城乡社区支出
C17: 12、农林水支出
C18: 13、交通运输支出
C19: 14、资源勘探信息等支出 | D19: 1081.77
C20: 15、商业服务业等支出 | D20: 255.60
C21: 16、金融支出
C22: 17、援助其他地区支出
C23: 18、国土海洋气象等支出
C24: 19、住房保障支出
C25: 20、油物资储备支出
C26: 21、其他支出 | D26: 2258.23
A29: 本年收入合计 | B29: 5440.12 | C29: 本年支出合计 | D29: 4727.00
A30: 用事业基金弥补收支差额 | C30: 结余分配
A31: 年初结转和结余 | B31: 190.00 | C31: 年末结转和结余 | D31: 903.12
A33: 收入总计 | B33: 5630.12 | C33: 支出总计 | D33: 5630.12
A34: 注：本表反映部门本年度的总收支和年末结转结余情况；报表存在尾数差异因四舍五入造成，可以忽略不计。

Sheet PF02 部门收入总体情况表(02表)
A1: 部门收入总体情况表
K2: 02表
A3: 部门名称： | D3: 原西安市阎良区发展改革和经济局 | F3: 2018年 | K3: 单位：万元
A4: 项目 | E4: 本年收入合计 | F4: 财政拨款收入 | G4: 上级补助收入 | H4: 事业收入 | I4: 经营收入 | J4: 附属单位上缴收入 | K4: 其他收入
A5: 功能分类科目编码 | D5: 科目名称 | K5: 小计
A8: 合计 | D8: 合计 | E8: 5440.12 | F8: 5440.12
A9: 201 | D9: 一般公共服务支出 | E9: 902.39 | F9: 902.39
A10: 20103 | D10: 政府办公厅（室）及相关机构事务 | E10: 2.40 | F10: 2.40
A11: 2010301 | D11: 行政运行 | E11: 0.99 | F11: 0.99
A12: 2010350 | D12: 事业运行 | E12: 1.41 | F12: 1.41
A13: 20104 | D13: 发展与改革事务 | E13: 899.99 | F13: 899.99
A14: 2010401 | D14: 行政运行 | E14: 325.48 | F14: 325.48
A15: 2010402 | D15: 一般行政管理事务 | E15: 46.86 | F15: 46.86
A16: 2010406 | D16: 社会事业发展规划 | E16: 32.50 | F16: 32.50
A17: 2010450 | D17: 事业运行 | E17: 102.04 | F17: 102.04
A18: 2010499 | D18: 其他发展与改革事务支出 | E18: 393.11 | F18: 393.11
A19: 206 | D19: 科学技术支出 | E19: 300.00 | F19: 300.00
A20: 20699 | D20: 其他科学技术支出 | E20: 300.00 | F20: 300.00
A21: 2069999 | D21: 其他科学技术支出 | E21: 300.00 | F21: 300.00
A22: 211 | D22: 节能环保支出 | E22: 329.00 | F22: 329.00
A23: 21110 | D23: 能源节约利用 | E23: 329.00 | F23: 329.00
A24: 2111001 | D24: 能源节约利用 | E24: 329.00 | F24: 329.00
A25: 215 | D25: 资源勘探信息等支出 | E25: 1109.90 | F25: 1109.90
A26: 21502 | D26: 制造业 | E26: 120.00 | F26: 120.00
A27: 2150299 | D27: 其他制造业支出 | E27: 120.00 | F27: 120.00
A28: 21505 | D28: 工业和信息产业监管 | E28: 989.90 | F28: 989.90
A29: 2150510 | D29: 工业和信息产业支持 | E29: 989.90 | F29: 989.90
A30: 216 | D30: 商业服务业等支出 | E30: 440.60 | F30: 440.60
A31: 21699 | D31: 其他商业服务业等支出 | E31: 440.60 | F31: 440.60
A32: 2169999 | D32: 其他商业服务业等支出 | E32: 440.60 | F32: 440.60
A33: 229 | D33: 其他支出 | E33: 2358.23 | F33: 2358.23
A34: 22904 | D34: 其他政府性基金及对应专项债务收入安排的支出 | E34: 2258.23 | F34: 2258.23
A35: 2290400 | D35: 其他政府性基金及对应专项债务收入安排的支出 | E35: 2258.23 | F35: 2258.23
A36: 22999 | D36: 其他支出 | E36: 100.00 | F36: 100.00
A37: 2299901 | D37: 其他支出 | E37: 100.00 | F37: 100.00
A38: 注：本表反映部门本年度取得的各项收入情况。

Sheet PF03 部门支出总体情况表(03表)
A1: 部门支出总体情况表
J2: 03表
A3: 部门名称： | D3: 原西安市阎良区发展改革和经济局 | F3: 2018年 | J3: 单位：万元
A4: 项目 | E4: 本年支出合计 | F4: 基本支出 | G4: 项目支出 | H4: 上缴上级支出 | I4: 经营支出 | J4: 对附属单位补助支出
A5: 功能分类科目编码 | D5: 科目名称
A8: 合计 | D8: 合计 | E8: 4727.00 | F8: =F9+F19+F22+F27+F32 -> 459.82 | G8: =G9+G19+G22+G27+G32 -> 4267.18
A9: 201 | D9: 一般公共服务支出 | E9: 1002.40 | F9: =F10+F13 -> 459.82 | G9: =G13 -> 542.58
A10: 20103 | D10: 政府办公厅（室）及相关机构事务 | E10: 2.40 | F10: 2.40
A11: 2010301 | D11: 行政运行 | E11: 0.99 | F11: 0.99
A12: 2010350 | D12: 事业运行 | E12: 1.41 | F12: 1.41
A13: 20104 | D13: 发展与改革事务 | E13: 1000.00 | F13: =F14+F17+F18 -> 457.42 | G13: =G15+G16+G18 -> 542.58
A14: 2010401 | D14: 行政运行 | E14: 325.48 | F14: 325.48
A15: 2010402 | D15: 一般行政管理事务 | E15: 46.86 | G15: 46.86
A16: 2010406 | D16: 社会事业发展规划 | E16: 32.50 | G16: 32.50
A17: 2010450 | D17: 事业运行 | E17: 102.04 | F17: 102.04
A18: 2010499 | D18: 其他发展与改革事务支出 | E18: 493.12 | F18: 29.90 | G18: 463.22
A19: 211 | D19: 节能环保支出 | E19: 129.00 | G19: 129.00
A20: 21110 | D20: 能源节约利用 | E20: 129.00 | G20: 129.00
A21: 2111001 | D21: 能源节约利用 | E21: 129.00 | G21: 129.00
A22: 215 | D22: 资源勘探信息等支出 | E22: 1081.77 | G22: 1081.77
A23: 21502 | D23: 制造业 | E23: 120.00 | G23: 120.00
A24: 2150299 | D24: 其他制造业支出 | E24: 120.00 | G24: 120.00
A25: 21505 | D25: 工业和信息产业监管 | E25: 961.77 | G25: 961.77
A26: 2150510 | D26: 工业和信息产业支持 | E26: 961.77 | G26: 961.77
A27: 216 | D27: 商业服务业等支出 | E27: 255.60 | G27: 255.60
A28: 21602 | D28: 商业流通事务 | E28: 90.00 | G28: 90.00
A29: 2160299 | D29: 其他商业流通事支出 | E29: 90.00 | G29: 90.00
A30: 21699 | D30: 其他商业服务业等支出 | E30: 165.60 | G30: 165.60
A31: 2169999 | D31: 其他商业服务业等支出 | E31: 165.60 | G31: 165.60
A32: 229 | D32: 其他支出 | E32: 2258.23 | G32: 2258.23
A33: 22904 | D33: 其他政府性基金及对应专项债务收入安排的支出 | E33: 2258.23 | G33: 2258.23
A34: 2290400 | D34: 其他政府性基金及对应专项债务收入安排的支出 | E34: 2258.23 | G34: 2258.23
A35: 注：本表反映部门本年度各项支出情况。

Sheet PF04 财政拨款收支总体情况表(04表)
A1: 财政拨款收支总体情况表
F2: 04表
A3: 部门名称：原西安市阎良区发展改革和经济局 | C3: 2018年 | F3: 单位：万元
A4: 收 入 | C4: 支 出
A5: 项 目 | B5: 决算数 | C5: 项目 | D5: 决算数
D6: 合计 | E6: 一般公共预算财政拨款 | F6: 政府性基金预算财政拨款
A7: 1、一般公共预算财政拨款 | B7: 3181.89 | C7: 1、一般公共服务支出 | D7: =E7 -> 1002.40 | E7: 1002.40
A8: 2、政府性基金预算财政拨款 | B8: 2258.23 | C8: 2、外交支出
A9: 3、国有资本经营预算收入 | C9: 3、国防支出
C10: 4、公共安全支出
C11: 5、教育支出
C12: 6、科学技术支出
C13: 7、文化体育与传媒支出
C14: 8、社会保障和就业支出
C15: 9、医疗卫生与计划生育支出
C16: 10、节能环保支出 | D16: =E16 -> 129.00 | E16: 129.00
C17: 11、城乡社区支出
C18: 12、农林水支出
C19: 13、交通运输支出
C20: 14、资源勘探信息等支出 | D20: =E20 -> 1081.77 | E20: 1081.77
C21: 15、商业服务业等支出 | D21: =E21 -> 255.60 | E21: 255.60
C22: 16、金融支出
C23: 17、援助其他地区支出
C24: 18、国土海洋气象等支出
C25: 19、住房保障支出
C26: 20、油物资储备支出
C27: 21、其他支出 | F27: 2258.23
A28: 本年收入合计 | B28: 5440.12 | C28: 本年支出合计 | D28: =E28+F28 -> 4727.00 | E28: =E7+E16+E20+E21 -> 2468.77 | F28: 2258.23
A29: 年初财政拨款结转和结余 | B29: 190.00 | C29: 年末财政拨款结转和结余 | D29: 903.12 | E29: 903.12
A30: 一般公共预算财政拨款 | B30: 190.00
A31: 政府性基金预算财政拨款
A32: 收入总计 | B32: =B28+B29 -> 5630.12 | C32: 支出总计 | D32: =D28+D29 -> 5630.12 | E32: =E28+E29 -> 3371.89 | F32: 2258.23
A33: 注：本表反映部门本年度一般公共预算财政拨款和政府性基金预算财政拨款的总收支和年末结转结余情况；报表存在尾数差异因四舍五入造成，可以忽略不计。

Sheet PF05 一般公共预算支出情况表（按功能分类科目）(05表)
A1: 一般公共预算支出情况表（按功能分类科目）
J2: 05表
A3: 部门名称： | D3: 原西安市阎良区发展改革和经济局 | F3: 2018年 | J3: 单位：万元
A4: 项目 | E4: 本年支出合计 | F4: 基本支出 | I4: 项目支出 | J4: 备注
A5: 功能分类科目编码 | D5: 科目名称 | F5: 小计 | G5: 人员经费 | H5: 公用经费
F6: 小计 | G6: 人员经费 | H6: 日常公用经费 | I6: 小计 | J6: 项目支出结余
A8: 合计 | D8: 合计 | E8: =F8+I8 -> 2468.77 | F8: =G8+H8 -> 459.82 | G8: 417.15 | H8: 42.67 | I8: 2008.95
A9: 201 | D9: 一般公共服务支出 | E9: =F9+I9 -> 1002.40 | F9: =G9+H9 -> 459.82 | G9: 417.15 | H9: 42.67 | I9: 542.58
A10: 20103 | D10: 政府办公厅（室）及相关机构事务 | E10: 2.40 | F10: 2.40 | G10: 2.40
A11: 2010301 | D11: 行政运行 | E11: =F11+I11 -> 0.99 | F11: =G11+H11 -> 0.99 | G11: 0.99
A12: 2010350 | D12: 事业运行 | E12: =F12+I12 -> 1.41 | F12: =G12+H12 -> 1.41 | G12: 1.41
A13: 20104 | D13: 发展与改革事务 | E13: =F13+I13 -> 1000.00 | F13: =G13+H13 -> 457.42 | G13: 414.75 | H13: 42.67 | I13: 542.58
A14: 2010401 | D14: 行政运行 | E14: =F14+I14 -> 325.48 | F14: =G14+H14 -> 325.48 | G14: 288.53 | H14: 36.95
A15: 2010402 | D15: 一般行政管理事务 | E15: =I15 -> 46.86 | I15: 46.86
A16: 2010406 | D16: 社会事业发展规划 | E16: =I16 -> 32.50 | I16: 32.50
A17: 2010450 | D17: 事业运行 | E17: =F17+I17 -> 102.04 | F17: =G17+H17 -> 102.04 | G17: 96.32 | H17: 5.72
A18: 2010499 | D18: 其他发展与改革事务支出 | E18: =F18+I18 -> 493.12 | F18: =G18+H18 -> 29.90 | G18: 29.90 | I18: 463.22
A19: 211 | D19: 节能环保支出 | E19: =I19 -> 129.00 | I19: 129.00
A20: 21110 | D20: 能源节约利用 | E20: 129.00 | I20: 129.00
A21: 2111001 | D21: 能源节约利用 | E21: 129.00 | I21: 129.00
A22: 215 | D22: 资源勘探信息等支出 | E22: 1081.77 | I22: 1081.77
A23: 21502 | D23: 制造业 | E23: 120.00 | I23: 120.00
A24: 2150299 | D24: 其他制造业支出 | E24: 120.00 | I24: 120.00
A25: 21505 | D25: 工业和信息产业监管 | E25: 961.77 | I25: 961.77
A26: 2150510 | D26: 工业和信息产业支持 | E26: 961.77 | I26: 961.77
A27: 216 | D27: 商业服务业等支出 | E27: 255.60 | I27: 255.60
A28: 21602 | D28: 商业流通事务 | E28: 90.00 | I28: 90.00
A29: 2160299 | D29: 其他商业流通事支出 | E29: 90.00 | I29: 90.00
A30: 21699 | D30: 其他商业服务业等支出 | E30: 165.60 | I30: 165.60
A31: 2169999 | D31: 其他商业服务业等支出 | E31: 165.60 | I31: 165.60
A32: 注：本表反映部门本年度一般公共预算财政拨款实际支出情况。

Sheet PF06一般公共预算基本支出情况表(按经济分类科目)(06表）
A1: 一般公共预算基本支出情况表（按经济分类科目）
H2: 06表
A3: 部门名称： | D3: 原西安市阎良区发展改革和经济局 | E3: 2018年 | H3: 单位：万元
A4: 项目 | E4: 本年支出合计 | F4: 人员经费 | G4: 公用经费 | H4: 备注
A5: 经济分类科目编码 | D5: 科目名称
E6: 小计 | F6: 人员经费 | G6: 日常公用经费 | H6: 项目支出结余
A8: 合计 | D8: 合计 | E8: =F8+G7:G8 -> 459.82 | F8: =F9+F31 -> 417.15 | G8: =G18+G19+G20+G21+G22+G23+G24+G25+G26+G27+G28+G29+G30 -> 42.67
A9: 301 | D9: 工资福利支出 | E9: =F9 -> 398.51 | F9: =F10+F11+F12+F13+F14+F15+F16 -> 398.51
A10: 30101 | D10: 基本工资 | E10: =F10 -> 87.56 | F10: 87.56
A11: 30102 | D11: 津贴补贴 | E11: 94.49 | F11: 94.49
A12: 30103 | D12: 奖金 | E12: 89.49 | F12: 89.49
A13: 30107 | D13: 绩效工资 | E13: 63.04 | F13: 63.04
A14: 30109 | D14: 职业年金缴费 | E14: 8.17 | F14: 8.17
A15: 30112 | D15: 其他社会保障缴费 | E15: 22.73 | F15: 22.73
A16: 30113 | D16: 住房公积金 | E16: 33.03 | F16: 33.03
A17: 302 | D17: 商品和服务支出 | E17: =G17 -> 42.67 | G17: =G8 -> 42.67
A18: 30201 | D18: 办公费 | E18: =G18 -> 5.34 | G18: 5.34
A19: 30202 | D19: 印刷费 | E19: 2.94 | G19: 2.94
A20: 30207 | D20: 邮电费 | E20: 1.61 | G20: 1.61
A21: 30211 | D21: 差旅费 | E21: 4.04 | G21: 4.04
A22: 30214 | D22: 租赁费 | E22: 0.85 | G22: 0.85
A23: 30216 | D23: 培训费 | E23: 0.69 | G23: 0.69
A24: 30217 | D24: 公务接待费 | E24: 6.56 | G24: 6.56
A25: 30266 | D25: 劳务费 | E25: 0.37 | G25: 0.37
A26: 30227 | D26: 委托业务费 | E26: 0.24 | G26: 0.24
A27: 30228 | D27: 工会经费 | E27: 0.85 | G27: 0.85
A28: 30231 | D28: 公务用车运行维护费 | E28: 2.58 | G28: 2.58
A29: 30239 | D29: 其他交通费用 | E29: 16.52 | G29: 16.52
A30: 30299 | D30: 其他商品和服务支出 | E30: 0.08 | G30: 0.08
A31: 303 | D31: 对个人和家庭的补助 | E31: =F31 -> 18.64 | F31: 18.64
A32: 30304 | D32: 抚恤金 | E32: =F32 -> 18.64 | F32: 18.64
A33: 注：本表反映部门本年度一般公共预算财政拨款基本支出明细情况。

Sheet PF07 一般公共预算“三公”经费支出情况表(07表）
A1: 一般公共预算“三公”经费及会议费、培训费支出情况表
I2: 07表
A3: 部门名称：原西安市阎良区发展改革和经济局 | D3: 2018年 | I3: 单位：万元
A4: 项目 | B4: 一般公共预算财政拨款安排的“三公”经费 | H4: 会议费 | I4: 培训费
B5: 小计 | C5: 因公出国（境）费用 | D5: 公务接待费 | E5: 公务用车购置及运行维护费
E6: 小计 | F6: 公务用车购置费 | G6: 公务用车运行维护费
B7: 1 | C7: 2 | D7: 3 | E7: 4 | F7: 5 | G7: 6 | H7: 7 | I7: 8
A8: 本年数 | B8: 9.14 | C8: 0 | D8: 6.56 | E8: 2.58 | F8: 0 | G8: 2.58 | I8: 0.69
A9: 上年数 | B9: 12.13 | D9: 9.66 | E9: 2.47 | G9: 2.47 | I9: 0.43
A10: 增减额 | B10: =B8-B9 -> -2.99 | C10: =C8-C9 -> 0 | D10: -3.1 | E10: 0.11 | F10: 0 | G10: 0.11 | H10: 0 | I10: 0.26
A11: 增减率（%） | B11: -24% | D11: -32% | E11: 4% | G11: 4% | I11: 60%
A12: 注：本表反映部门本年度一般公共预算财政拨款“三公”经费、会议费、培训费的实际支出。

Sheet PF08 政府性基金预算支出情况表(08表)
A1: 政府性基金预算收支情况表
J2: 08表
A3: 部门名称： | D3: 原西安市阎良区发展改革和经济局 | F3: 2018年 | J3: 单位：万元
A4: 项目 | E4: 年初结转和结余 | F4: 本年收入 | G4: 本年支出 | J4: 年末结转和结余
A5: 功能分类科目编码 | D5: 科目名称 | G5: 小计 | H5: 基本支出 | I5: 项目支出
H6: 小计 | I6: 小计 | J6: 项目支出结余
A8: 合计 | D8: 合计 | F8: 2258.23 | G8: 2258.23 | I8: 2258.23
A9: 229 | D9: 其他支出 | F9: 2258.23 | G9: 2258.23 | I9: 2258.23
A10: 22904 | D10: 其他政府性基金及对应专项债务收入安排的支出 | F10: 2258.23 | G10: 2258.23 | I10: 2258.23
A11: 2290400 | D11: 其他政府性基金及对应专项债务收入安排的支出
A15: 注：本表反映部门本年度政府性基金预算财政拨款收入支出及结转和结余情况

Sheet PF09 政府采购情况表(09表)
A1: 政府采购情况表
E2: 09表
A3: 部门名称：原西安市阎良区发展改革和经济局 | C3: 2018年 | E3: 金额单位：万元
A4: 项目 | B4: 行次 | C4: 采购决算数
C5: 总计 | D5: 财政性资金 | E5: 其他资金
A6: 栏次 | C6: 1 | D6: 2 | E6: 3
A7: 合 计 | B7: 1
A8: 货物 | B8: 2
A9: 工程 | B9: 3
A10: 服务 | B10: 4
